bitfinex/quotes_ETHUSD_20260113
["timestamp","ask_amount","ask_price","bid_price","bid_amount"]
[1768325923235,3.9372365,3174.3,3173.3,8.2481407]
[1768325923437,8.89962502,3174.3,3173.3,8.2481407]
[1768325923602,0.88840132,3174.2,3173.3,3.1512936]
[1768325924028,1.13540132,3174.2,3173.3,3.1512936]
[1768325924208,2.94744735,3174.2,3173.3,3.1512936]
[1768325924802,4.96254538,3174.1,3173.2,3.15139291]
[1768325925207,8.11304473,3174.1,3173.2,3.15139291]
[1768325925408,8.89993874,3174.1,3173.6,0.001]
[1768325925596,5.74943939,3174.1,3173.6,0.001]
[1768325926034,8.89993874,3174.1,3173.6,0.001]
[1768325926606,5.74943939,3174.1,3173.6,0.001]
[1768325931390,3.39746489,3174.2,3173.6,0.001]
[1768325931554,3.39743467,3174.2,3173.6,0.001]
[1768325933747,6.54786934,3174.2,3173.6,0.001]
[1768325933946,8.35991537,3174.2,3173.6,0.001]
[1768325935468,1.81204603,3174.1,3173.6,0.001]
[1768325935852,4.96262491,3174.1,3173.6,0.001]
[1768325936051,1.81204603,3174.6,3173.6,1.9465535]
[1768325936351,1.81204603,3174.4,3173.7,0.19465535]
[1768325936554,1.81204603,3174.4,3173.6,0.001]
[1768325936753,1.81204603,3174.2,3173.6,0.001]
[1768325936957,1.81204603,3174.2,3173.9,0.001]
[1768325939265,4.96248012,3174.2,3173.9,0.001]
[1768325939965,3.15024597,3174.4,3173.9,0.001]
[1768325940266,1.81204603,3175.4,3173.9,2.14120885]
[1768325940467,1.81204603,3175.2,3173.9,2.14120885]
[1768325940774,1.81204603,3175.2,3173.9,2.38820885]
[1768325940931,0.247,3175.4,3173.9,2.38820885]
[1768325941138,1.81204603,3175.3,3174.2,3.1504001]
[1768325941437,1.81204603,3175.3,3173.9,0.19565535]
[1768325941438,1.81204603,3174.7,3173.9,0.19565535]
[1768325941632,1.81204603,3174.7,3173.9,0.001]
[1768325941935,1.81204603,3174.5,3173.9,0.001]
[1768325942169,1.81204603,3174.3,3173.6,0.001]
[1768325942358,1.81204603,3174.1,3172.9,3.15165823]
[1768325942685,1.81204603,3174.1,3172.9,3.39865823]
[1768325942987,1.81204603,3174.0,3173.0,3.49145042]
[1768325943466,3.15069787,3173.9,3173.0,3.49145042]
[1768325944387,3.80792162,3174.1,3173.2,4.76153714]
[1768325944586,5.61996765,3174.1,3173.0,5.43700392]
[1768325944956,8.77053095,3174.1,3173.0,5.43700392]
[1768325945158,8.77053095,3174.1,3173.0,10.19854106]
[1768325945358,8.77053095,3174.1,3173.1,1.35972182]
[1768325945653,8.77053095,3174.1,3173.1,4.51117034]
[1768325945988,3.15030085,3174.3,3173.2,2.02816449]
[1768325946360,3.15024373,3174.4,3173.2,2.02816449]
[1768325946894,3.39713807,3174.5,3173.2,2.02816449]
[1768325947587,2.00442476,3174.4,3173.3,3.1512936]
[1768325947795,2.04380228,3174.4,3173.3,3.1512936]
[1768325947992,2.00442476,3174.2,3173.3,3.1512936]
[1768325948490,2.00442476,3174.2,3172.9,3.15159453]
[1768325948699,2.00442476,3174.2,3173.5,0.001]
[1768325949559,3.15049935,3174.1,3173.5,0.001]
[1768325949962,3.1504188,3174.2,3173.5,0.001]
[1768325950262,2.00442476,3174.1,3173.5,0.001]
[1768325952176,3.15059861,3174.0,3173.5,0.001]
[1768325952693,8.30562198,3174.0,3173.5,0.001]
[1768325952994,2.00442476,3173.9,3173.5,0.001]
[1768325954599,5.15517359,3173.9,3173.5,0.001]
[1768325954766,5.98574348,3173.9,3173.5,0.001]
[1768325955958,2.83499465,3173.9,3173.5,0.001]
[1768325956162,3.15061591,3174.0,3173.5,0.001]
[1768325956394,3.15054353,3174.1,3173.5,0.001]
[1768325957273,2.43026708,3174.2,3173.5,0.001]
[1768325957599,5.15957102,3174.3,3173.5,0.001]
[1768325959389,3.39730085,3174.3,3173.5,1.95335871]
[1768325959565,6.5476017,3174.3,3173.5,1.95335871]
[1768325959766,2.00927017,3174.2,3173.5,0.001]
[1768325959964,2.00927017,3174.0,3173.5,0.001]
[1768325960176,2.00927017,3173.8,3173.5,0.001]
[1768325960381,0.20486514,3173.9,3173.5,0.001]
[1768325960604,2.00927017,3174.0,3173.5,0.001]
[1768325961465,2.00927017,3173.8,3172.3,0.16408675]
[1768325961585,2.00927017,3173.6,3171.9,3.15268387]
[1768325961903,2.00927017,3173.4,3172.0,1.95235871]
[1768325962086,2.00927017,3173.2,3172.1,0.51050426]
[1768325962291,2.25627017,3173.2,3172.1,0.51050426]
[1768325962501,2.25627017,3173.2,3171.4,2.11644056]
[1768325962674,2.25627017,3173.2,3171.7,3.15282243]
[1768325963199,2.00927017,3172.8,3171.7,1.95235871]
[1768325963789,3.15169088,3172.9,3171.7,1.95235871]
[1768325964316,2.25627017,3172.8,3171.6,3.15298272]
[1768325964602,2.25627017,3172.8,3171.7,2.29235698]
[1768325965281,5.40809579,3172.8,3171.8,5.10514261]
[1768325965882,3.39882562,3172.8,3171.9,1.95235871]
[1768325967311,3.39882562,3172.8,3171.9,5.10502334]
[1768325968531,5.16089198,3173.0,3172.0,1.95235871]
[1768325968532,3.15177908,3172.9,3172.0,1.95235871]
[1768325968685,3.15177908,3172.9,3172.1,0.51050233]
[1768325969383,3.15159155,3173.0,3172.1,0.51050233]
[1768325969583,6.30318412,3173.0,3172.1,0.51050233]
[1768325969785,8.31245429,3173.0,3172.1,0.51050233]
[1768325970019,8.31245429,3173.0,3171.9,1.95235871]
[1768325970194,2.00927017,3172.9,3171.8,7.91983597]
[1768325970590,2.00927017,3172.9,3171.9,1.95235871]
[1768325971297,2.00927017,3172.9,3171.8,7.91982665]
[1768325971298,2.00927017,3172.9,3171.8,4.76708267]
[1768325971493,2.00927017,3172.7,3171.7,0.33999827]
[1768325971811,2.00927017,3172.5,3171.5,5.10536416]
[1768325972188,2.00927017,3172.5,3172.4,0.001]
[1768325972382,2.00927017,3172.5,3171.6,3.15297222]
[1768325972813,2.00927017,3172.5,3171.7,3.15284479]
[1768325973019,0.247,3172.5,3171.8,1.95235871]
[1768325973315,0.247,3172.5,3171.7,3.15284479]
[1768325973515,3.3991435,3172.5,3171.6,5.10534143]
[1768325973720,0.247,3172.5,3171.6,6.43259192]
[1768325973929,0.83128506,3172.6,3171.6,6.43259192]
[1768325973930,0.247,3172.6,3171.8,1.95235871]
[1768325974618,0.247,3172.6,3171.6,14.35265731]
[1768325975189,0.247,3172.6,3171.6,11.19967459]
[1768325976993,3.15208825,3172.5,3171.6,11.19967459]
[1768325977194,3.15208825,3172.5,3171.7,2.00483847]
[1768325977389,3.15194461,3172.7,3172.1,4.76708267]
[1768325977727,0.248,3172.6,3171.9,4.76708267]
[1768325978834,0.248,3172.6,3171.9,2.00483847]
[1768325979503,0.248,3172.7,3171.9,6.77192114]
[1768325979705,0.248,3172.7,3172.0,0.99246824]
[1768325980812,0.248,3172.7,3171.8,4.76708267]
[1768325981035,2.27408435,3172.7,3171.8,4.76708267]
[1768325981639,2.02608435,3172.5,3171.4,5.01408267]
[1768325981849,2.02608435,3172.2,3171.4,0.247]
[1768325982009,2.02608435,3172.2,3171.4,5.01408267]
[1768325982347,2.02608435,3172.4,3171.4,10.1720978]
[1768325982845,2.02608435,3172.4,3171.5,3.15306761]
[1768325983247,2.02608435,3172.4,3171.4,8.16722445]
[1768325983425,2.72704302,3172.4,3171.4,9.36321086]
[1768325983623,0.70095867,3172.4,3171.6,6.77192114]
[1768325983840,0.248,3172.3,3171.8,4.76708267]
[1768325984010,0.248,3172.5,3171.7,2.00483847]
[1768325984214,0.248,3172.5,3171.8,6.77192114]
[1768325984642,0.248,3172.5,3171.6,6.77192114]
[1768325984827,0.248,3172.5,3171.7,0.99249752]
[1768325985029,0.002,3172.3,3171.7,0.99249752]
[1768325985346,2.45873785,3172.6,3171.8,2.00483847]
[1768325985749,2.45873785,3172.6,3171.8,5.15754338]
[1768325985917,0.002,3172.6,3171.8,5.15754338]
[1768325986117,0.002,3172.6,3171.9,2.93513043]
[1768325986923,0.002,3172.6,3171.9,0.93029196]
[1768325987153,2.06748421,3172.6,3171.5,0.248]
[1768325987443,2.06748421,3172.6,3171.3,2.00483847]
[1768325987642,2.06748421,3172.6,3171.1,4.76724207]
[1768325987643,2.06748421,3172.6,3171.2,3.15329742]
[1768325987847,2.02608435,3172.4,3171.2,3.15329742]
[1768325988547,2.02608435,3172.4,3171.2,6.30667784]
[1768325988750,2.02608435,3172.4,3171.3,0.65546778]
[1768325990452,2.02608435,3172.2,3171.3,3.80868672]
[1768325990934,2.02608435,3172.2,3171.3,0.65546778]
[1768325991133,2.02608435,3172.1,3171.3,0.65546778]
[1768325991329,2.02608435,3172.1,3171.1,0.248]
[1768325991330,2.02608435,3172.1,3171.2,3.15331788]
[1768325991536,2.02608435,3172.1,3171.3,3.15326705]
[1768325991746,2.02608435,3172.1,3171.1,0.248]
[1768325991927,2.02608435,3172.1,3171.2,3.15331911]
[1768325992128,2.02608435,3172.1,3171.3,3.15327903]
[1768325992328,2.02608435,3172.1,3171.4,0.3153279]
[1768325993671,5.1785766,3172.1,3171.4,0.3153279]
[1768325993828,2.02608435,3172.0,3171.4,0.3153279]
[1768325994032,2.02608435,3172.0,3171.1,0.248]
[1768325994345,2.02608435,3172.0,3171.1,3.40143079]
[1768325994535,2.02608435,3172.0,3171.1,0.248]
[1768325994867,2.02608435,3172.0,3171.1,3.40147667]
[1768325995069,2.02608435,3172.0,3171.2,3.4935189]
[1768325995272,3.15249225,3172.1,3171.2,2.34498614]
[1768325995477,8.33106885,3172.1,3171.2,2.34498614]
[1768325996151,5.1785766,3172.1,3171.2,2.34498614]
[1768325996479,0.29175419,3172.0,3171.2,2.34498614]
[1768325996643,0.29175419,3171.9,3171.3,0.25929861]
[1768325996846,0.29175419,3171.8,3171.3,0.25929861]
[1768325997072,0.29175419,3171.7,3171.3,0.25929861]
[1768325997351,0.29175419,3171.6,3171.3,0.25929861]
[1768325997547,3.15208825,3172.5,3171.5,2.00583847]
[1768325997749,2.35721699,3172.4,3171.6,0.20058385]
[1768325997957,2.31781465,3172.3,3171.5,0.249]
[1768325998282,3.44414356,3172.2,3171.5,0.249]
[1768325998602,0.2917303,3172.1,3171.5,0.001]
[1768325998748,0.2917303,3172.0,3171.5,0.001]
[1768325999070,0.2917303,3171.9,3171.5,0.001]
[1768325999271,3.15241326,3172.2,3171.5,0.001]
[1768325999472,0.29179481,3172.1,3171.5,0.001]
[1768325999673,0.29179481,3172.0,3171.5,0.001]
[1768325999883,0.29179481,3171.9,3171.5,0.001]
[1768326000183,3.15241326,3172.2,3171.5,0.001]
[1768326000353,0.29181991,3172.1,3171.5,0.001]
[1768326000676,0.29181991,3172.0,3171.5,0.001]
[1768326000846,0.29181991,3171.9,3171.5,0.34235666]
[1768326001047,8.33091087,3172.2,3171.5,0.001]
[1768326001248,0.248,3172.3,3171.5,2.00583847]
[1768326001249,0.29180426,3172.1,3171.5,2.00583847]
[1768326001447,0.29180426,3172.0,3171.5,0.001]
[1768326001644,0.29180426,3171.9,3171.5,0.001]
[1768326001848,6.55264326,3172.3,3171.5,0.001]
[1768326002082,3.15248573,3172.1,3171.5,0.22751371]
[1768326002257,0.2917072,3172.0,3171.5,0.22751371]
[1768326002463,0.2917072,3171.9,3171.5,0.22751371]
[1768326002682,3.15242845,3172.2,3171.5,0.22751371]
[1768326002983,0.29171472,3172.1,3171.5,0.22751371]
[1768326003199,0.29171472,3172.0,3171.5,0.22751371]
[1768326003349,0.29171472,3171.9,3171.5,0.22751371]
[1768326003549,3.15242845,3172.2,3171.6,0.22323522]
[1768326003752,0.2917114,3172.1,3171.6,0.22323522]
[1768326004049,0.2917114,3172.0,3171.6,0.22323522]
[1768326004395,2.31779575,3171.9,3171.5,0.001]
[1768326004599,0.2917114,3171.8,3171.5,0.001]
[1768326004900,0.2917114,3171.7,3171.5,0.001]
[1768326005049,3.15258696,3172.0,3171.5,0.001]
[1768326005255,0.2913971,3171.9,3171.5,0.001]
[1768326005457,0.2913971,3171.8,3171.5,0.001]
[1768326005659,0.2913971,3171.7,3171.5,0.001]
[1768326005858,9.19674808,3172.0,3171.5,0.001]
[1768326006060,0.29129606,3171.9,3171.5,0.001]
[1768326006305,3.15288331,3171.7,3171.5,0.001]
[1768326006598,3.15282197,3171.8,3171.5,0.001]
[1768326006776,0.29129414,3171.7,3171.5,0.001]
[1768326006978,3.15272481,3171.9,3171.5,0.001]
[1768326007175,0.29129744,3171.8,3171.5,0.001]
[1768326007376,0.29129744,3171.7,3171.5,0.001]
[1768326007686,3.15253408,3172.1,3171.5,0.001]
[1768326007870,0.29135386,3172.0,3171.5,2.29745315]
[1768326008193,3.15222238,3172.4,3171.6,2.08759377]
[1768326008400,0.29140978,3172.3,3171.6,2.08759377]
[1768326008595,0.29140978,3172.2,3171.6,2.08759377]
[1768326008807,0.29140978,3172.1,3171.6,2.08759377]
[1768326008971,3.15222238,3172.4,3171.7,0.54504508]
[1768326009169,0.29144596,3172.3,3171.7,0.54504508]
[1768326009373,0.29144596,3172.2,3171.7,0.54504508]
[1768326009577,0.29144596,3172.1,3171.8,2.08759377]
[1768326009783,3.15211555,3172.5,3171.8,2.08759377]
[1768326009983,0.29147448,3172.4,3171.9,2.35085765]
[1768326010270,0.29147448,3172.3,3171.9,2.35085765]
[1768326010576,0.002,3172.6,3171.9,0.26326388]
[1768326010577,0.29147448,3172.2,3171.9,0.26326388]
[1768326010776,0.29147448,3172.1,3171.9,0.26326388]
[1768326010963,3.15211162,3172.5,3171.9,0.26326388]
[1768326011168,0.29150607,3172.4,3171.9,0.26326388]
[1768326011514,0.29150607,3172.3,3171.9,0.26326388]
[1768326011664,0.29150607,3172.2,3171.9,2.35085765]
[1768326011869,0.002,3172.6,3172.0,0.23508577]
[1768326012171,0.29152948,3172.5,3172.0,0.23508577]
[1768326012385,0.29152948,3172.4,3172.0,0.23508577]
[1768326012580,0.29152948,3172.3,3172.0,2.32267954]
[1768326012898,0.002,3172.6,3172.1,0.59866157]
[1768326012899,2.09491266,3172.6,3172.1,0.59866157]
[1768326013080,2.0555128,3172.6,3171.9,0.51126388]
[1768326013506,2.0555128,3172.6,3171.9,0.26326388]
[1768326014697,2.0555128,3172.4,3171.9,0.26326388]
[1768326015193,2.0555128,3172.4,3171.6,3.40090895]
[1768326015583,3.15208825,3172.5,3171.7,2.08759377]
[1768326016091,5.06831215,3172.5,3171.7,2.08759377]
[1768326016403,5.06831215,3172.5,3171.6,0.248]
[1768326016608,5.06831215,3172.5,3171.6,3.40091662]
[1768326016802,1.9162239,3172.4,3171.7,0.54792108]
[1768326017007,1.9162239,3172.4,3171.5,2.32629421]
[1768326017375,1.9162239,3172.4,3171.5,0.249]
[1768326017772,1.9162239,3172.4,3171.5,2.32629421]
[1768326018280,1.9162239,3172.4,3171.5,2.07829421]
[1768326018480,1.9162239,3172.4,3171.6,0.54794608]
[1768326018899,5.06844524,3172.4,3171.6,3.70091329]
[1768326019415,5.31625083,3172.6,3171.7,2.07729421]
[1768326019576,3.15180972,3172.8,3171.8,2.07729421]
[1768326019577,3.15193661,3172.7,3171.8,2.07729421]
[1768326019776,8.22009712,3172.7,3171.8,2.07729421]
[1768326019988,1.9162239,3172.6,3171.8,1.05453723]
[1768326020408,3.15159982,3173.0,3172.3,2.07729421]
[1768326020607,5.06766043,3173.2,3172.3,2.07729421]
[1768326020923,3.15287425,3173.8,3172.2,4.76724207]
[1768326020924,0.002,3173.8,3172.8,5.22907966]
[1768326021124,0.002,3173.8,3172.9,2.32529421]
[1768326021434,5.06902937,3173.8,3173.0,0.86288699]
[1768326021711,5.06902937,3173.8,3172.6,5.22920432]
[1768326021712,1.9162239,3173.7,3172.6,5.22920432]
[1768326022015,1.9162239,3173.7,3172.9,0.248]
[1768326022209,1.9182239,3173.7,3172.9,0.248]
[1768326022979,1.9162239,3173.5,3172.9,0.248]
[1768326023615,3.15099571,3173.6,3172.9,0.248]
[1768326024414,6.30199142,3173.6,3172.9,0.248]
[1768326025412,6.30199142,3173.6,3172.6,5.2292549]
[1768326025413,1.95561258,3173.5,3172.4,3.15211499]
[1768326025582,1.95561258,3173.5,3172.7,0.247]
[1768326025583,1.9162239,3173.5,3172.7,0.247]
[1768326025785,5.06912033,3173.7,3172.7,2.32429421]
[1768326026008,0.29074245,3173.6,3172.8,2.30972363]
[1768326026183,5.06912033,3173.7,3172.8,5.46150827]
[1768326026383,0.29069037,3173.6,3172.8,2.30972363]
[1768326026617,8.22001676,3173.7,3172.8,2.30972363]
[1768326026912,0.29069029,3173.6,3172.8,2.30972363]
[1768326027094,1.9162239,3173.6,3172.8,0.23242942]
[1768326027296,1.9162239,3173.6,3172.9,0.247]
[1768326028806,3.151095,3173.5,3172.9,0.247]
[1768326029134,8.2184139,3173.5,3172.9,0.247]
[1768326029333,1.95561382,3173.4,3172.7,0.247]
[1768326029482,1.9162239,3173.4,3172.7,0.247]
[1768326029689,0.90406156,3173.4,3172.7,0.247]
[1768326030918,3.1512936,3173.3,3172.7,0.247]
[1768326031119,8.2188111,3173.3,3172.3,2.07729421]
[1768326031416,1.9162239,3173.2,3172.0,2.07729421]
[1768326031718,1.9162239,3173.0,3172.0,2.07729421]
[1768326032017,1.9162239,3173.0,3172.1,0.247]
[1768326032417,1.9162239,3173.0,3172.2,0.247]
[1768326032986,1.9162239,3173.0,3172.3,3.15226616]
[1768326033185,5.06763767,3173.2,3172.4,0.247]
[1768326033700,5.06763767,3173.2,3172.5,0.001]
[1768326034119,9.04095167,3173.2,3172.5,0.001]
[1768326036217,5.8895379,3173.2,3172.5,0.001]
[1768326036620,3.15141377,3173.2,3172.5,0.001]
[1768326036927,3.15133829,3173.3,3172.5,1.96944748]
[1768326037089,0.29075472,3173.2,3172.5,1.96944748]
[1768326037424,3.15133829,3173.3,3172.5,1.96944748]
[1768326037621,0.29086875,3173.2,3172.5,1.96944748]
[1768326037828,5.33311311,3173.5,3172.5,2.82153518]
[1768326037829,3.1511943,3173.4,3172.5,2.82153518]
[1768326038024,0.29086807,3173.3,3172.5,5.97360566]
[1768326038324,0.002,3173.7,3173.0,4.76724207]
[1768326038498,0.002,3173.7,3173.1,2.21544748]
[1768326039605,3.15290588,3173.7,3173.1,2.21544748]
[1768326039805,3.15290588,3173.7,3173.1,0.247]
[1768326040426,0.002,3173.7,3173.1,0.247]
[1768326040603,0.002,3173.7,3173.1,0.46854475]
[1768326043030,0.002,3173.7,3173.1,0.22154475]
[1768326043196,0.002,3173.7,3173.2,0.247]
[1768326047033,0.002,3173.7,3173.3,4.76378989]
[1768326047034,1.93399911,3173.7,3173.3,4.76378989]
[1768326047326,1.93599911,3174.1,3173.4,0.247]
[1768326047526,0.29118237,3174.0,3173.5,2.46952647]
[1768326047725,3.15251716,3174.1,3173.5,0.50107899]
[1768326048110,3.15251716,3174.1,3173.6,0.247]
[1768326048111,5.08651627,3174.1,3173.6,0.247]
[1768326048313,0.29124932,3174.0,3173.6,0.247]
[1768326048512,5.08651627,3174.1,3173.6,0.247]
[1768326048712,0.002,3174.1,3173.6,0.247]
[1768326048912,0.002,3174.1,3173.7,0.27165265]
[1768326050131,2.22519234,3174.0,3173.5,0.50107899]
[1768326050321,1.93399911,3174.0,3173.6,0.247]
[1768326050523,0.002,3174.1,3173.6,0.247]
[1768326050831,0.29133675,3174.0,3173.6,0.247]
[1768326051033,0.002,3174.1,3173.6,0.247]
[1768326051204,0.291341,3174.0,3173.6,2.21544748]
[1768326051399,0.002,3174.1,3173.6,1.26003924]
[1768326051600,0.002,3174.1,3173.7,1.96844748]
[1768326052431,0.002,3174.1,3173.6,1.26003924]
[1768326054038,0.002,3174.1,3173.6,4.41101222]
[1768326054438,0.002,3174.1,3173.6,4.41097306]
[1768326054617,0.002,3174.1,3173.7,0.95305123]
[1768326055219,0.002,3174.1,3173.6,1.26003924]
[1768326055635,1.93399911,3174.0,3173.1,0.22154475]
[1768326055824,1.93399911,3173.8,3172.8,0.001]
[1768326056031,1.97338407,3173.8,3172.9,0.247]
[1768326056229,1.93399911,3173.8,3172.9,3.39867556]
[1768326056630,1.93399911,3173.8,3173.1,3.15148289]
[1768326056856,1.93399911,3173.8,3173.0,3.1515455]
[1768326057051,5.08480125,3173.8,3173.1,3.15148956]
[1768326057256,5.08459772,3174.0,3173.1,3.15148956]
[1768326057564,0.29103417,3173.9,3173.1,3.15148956]
[1768326057861,5.08459772,3174.0,3173.1,3.15148956]
[1768326058072,0.29102711,3173.9,3173.1,3.15148956]
[1768326058277,1.93399911,3173.9,3173.1,3.15148956]
[1768326058424,0.002,3173.8,3173.1,3.15148956]
[1768326058631,0.002,3173.8,3173.1,4.04416166]
[1768326058833,1.93599911,3173.8,3173.1,4.04416166]
[1768326059680,5.08681079,3173.8,3173.1,0.8926721]
[1768326059828,1.93399911,3173.7,3172.8,0.001]
[1768326060032,1.93399911,3173.7,3172.8,3.15278994]
[1768326060468,1.93399911,3173.7,3172.9,3.15165599]
[1768326060853,0.002,3173.8,3173.1,7.91526032]
[1768326061055,0.002,3174.1,3173.7,4.76378989]
[1768326061590,0.002,3174.1,3173.7,7.91460301]
[1768326062074,0.002,3174.1,3173.7,4.76378989]
[1768326062370,0.002,3174.1,3173.5,5.11949198]
[1768326062574,0.002,3174.1,3173.6,4.13931335]
[1768326062778,0.002,3174.1,3173.6,0.98832819]
[1768326062985,0.002,3174.1,3173.5,3.15106003]
[1768326063277,1.93599911,3174.1,3173.4,3.15118138]
[1768326063577,1.93599911,3174.1,3173.6,0.247]
[1768326063785,1.93399911,3174.0,3173.1,5.11989889]
[1768326064095,6.30307004,3174.1,3173.1,5.11989889]
[1768326064096,0.002,3174.1,3173.4,0.247]
[1768326064793,0.002,3174.1,3173.5,0.22154475]
[1768326065499,3.15251848,3174.1,3173.5,0.22154475]
[1768326065707,2.28519392,3174.0,3173.2,0.247]
[1768326065847,1.9938577,3174.0,3173.2,0.247]
[1768326066586,2.03324142,3173.9,3172.9,0.85199594]
[1768326066748,1.9938577,3173.7,3172.9,4.25065092]
[1768326066948,1.9938577,3173.7,3173.0,0.42516509]
[1768326067247,1.9938577,3173.7,3172.9,3.39865498]
[1768326067248,1.9938577,3173.4,3172.8,0.001]
[1768326067447,0.29153084,3173.6,3172.8,0.001]
[1768326067448,1.9938577,3173.2,3172.8,0.001]
[1768326067665,3.15149223,3173.1,3172.8,0.001]
[1768326067956,8.29684216,3173.1,3172.8,0.001]
[1768326068287,1.9938577,3173.0,3172.8,0.001]
[1768326069049,1.9938577,3173.0,3172.2,0.247]
[1768326069255,1.9938577,3173.0,3172.2,3.39938141]
[1768326070552,8.2962463,3173.4,3172.2,6.55176776]
[1768326070757,0.29140689,3173.3,3172.6,4.76378989]
[1768326070961,3.1511943,3173.4,3172.7,0.47647899]
[1768326071154,0.29145325,3173.3,3172.7,0.47647899]
[1768326071355,3.1511943,3173.4,3172.4,4.76378989]
[1768326071651,0.2914035,3173.3,3172.4,4.76378989]
[1768326071847,3.1511943,3173.4,3172.5,3.15308825]
[1768326072052,0.29140447,3173.3,3172.5,3.15308825]
[1768326072248,3.1511943,3173.4,3172.5,3.15308825]
[1768326072477,0.29137556,3173.3,3172.5,4.45930806]
[1768326072659,3.1511943,3173.4,3172.5,4.45930806]
[1768326072865,0.29137729,3173.3,3172.5,4.45930806]
[1768326073074,3.1511943,3173.4,3172.5,4.45930806]
[1768326073277,0.29134799,3173.3,3172.5,4.45930806]
[1768326073482,6.3023886,3173.4,3172.6,1.23752764]
[1768326073663,1.9938577,3173.2,3172.5,0.001]
[1768326073994,5.14534993,3173.1,3172.5,0.001]
[1768326075512,1.9938577,3173.0,3172.5,0.001]
[1768326075715,1.9938577,3172.9,3172.5,0.001]
[1768326076114,5.14559425,3172.9,3172.5,0.001]
[1768326078350,3.15099571,3173.6,3172.7,4.76378989]
[1768326078616,0.2908476,3173.5,3172.7,4.76378989]
[1768326078782,4.99198058,3173.7,3172.8,0.50107899]
[1768326078980,2.13189829,3173.6,3172.8,0.50107899]
[1768326079194,1.84103651,3173.6,3172.8,0.50107899]
[1768326079605,1.84103651,3173.6,3172.6,0.247]
[1768326080309,1.84103651,3173.6,3172.7,6.3037791]
[1768326080684,1.84103651,3173.7,3172.7,8.12543095]
[1768326081186,3.39773477,3173.9,3172.8,1.82165185]
[1768326081400,0.29094526,3173.8,3172.8,1.82165185]
[1768326081583,3.39773477,3173.9,3172.9,2.63419495]
[1768326082831,3.39773477,3173.9,3173.0,3.15159155]
[1768326083628,6.54846954,3173.9,3173.0,3.15159155]
[1768326083810,8.38950605,3173.9,3173.0,3.15159155]
[1768326084133,0.29106541,3173.8,3173.0,3.15159155]
[1768326084427,5.23877128,3173.9,3173.1,0.39641347]
[1768326084602,0.29115047,3173.8,3173.1,0.39641347]
[1768326084932,5.23877128,3173.9,3173.1,3.54789726]
[1768326085109,0.29117015,3173.8,3173.1,3.54789726]
[1768326085305,5.23877128,3173.9,3173.1,3.54789726]
[1768326085522,0.29121426,3173.8,3173.1,3.54789726]
[1768326085722,5.23877128,3173.9,3173.2,0.35478973]
[1768326085911,0.29121451,3173.8,3173.2,0.35478973]
[1768326086114,8.38950605,3173.9,3173.2,0.35478973]
[1768326086319,0.29123289,3173.8,3173.2,0.35478973]
[1768326086524,0.29121954,3173.7,3173.2,0.35478973]
[1768326086722,1.84103651,3173.8,3173.2,0.35478973]
[1768326086926,0.29122467,3173.7,3173.2,0.35478973]
[1768326087126,4.99190229,3173.8,3173.2,0.35478973]
[1768326087314,0.29125111,3173.7,3173.2,0.35478973]
[1768326087614,4.99190229,3173.8,3173.2,0.35478973]
[1768326087811,0.002,3174.1,3173.2,8.47920402]
[1768326087999,0.002,3174.1,3173.4,1.82165185]
[1768326088902,0.002,3174.1,3173.5,6.30219]
[1768326089703,1.84303651,3174.1,3171.9,0.28718678]
[1768326089924,6.03944532,3173.0,3170.4,3.15410189]
[1768326090133,6.03944532,3173.0,3170.9,1.82165185]
[1768326090134,1.68745476,3171.3,3170.9,1.82165185]
[1768326090333,0.1638,3171.8,3170.9,1.82165185]
[1768326090837,3.15288331,3171.7,3170.9,1.82165185]
[1768326091035,3.15288331,3171.7,3171.1,1.82165185]
[1768326091235,0.1638,3171.8,3171.1,1.82165185]
[1768326091833,3.3166058,3171.8,3171.1,1.82165185]
[1768326092107,6.4694116,3171.8,3171.0,0.18216519]
[1768326092301,6.7164116,3171.8,3170.4,1.82165185]
[1768326092551,0.29124721,3171.7,3170.4,2.06865185]
[1768326092741,6.7164116,3171.8,3170.4,2.06865185]
[1768326093050,0.29129639,3171.7,3170.4,5.22274522]
[1768326093338,0.1638,3171.8,3170.5,1.82165185]
[1768326093518,0.1638,3171.8,3170.7,1.82165185]
[1768326093833,3.31663426,3171.8,3170.7,1.82165185]
[1768326094039,0.247,3171.7,3170.4,3.15409337]
[1768326094235,0.247,3171.7,3170.7,0.001]
[1768326094444,3.31663426,3171.8,3170.7,1.82265185]
[1768326094604,0.1638,3171.8,3170.8,2.00391704]
[1768326094804,3.31666184,3171.8,3170.8,2.00391704]
[1768326095437,3.15286184,3171.8,3170.8,2.00391704]
[1768326095628,6.30572368,3171.8,3170.8,2.00391704]
[1768326095943,6.30572368,3171.8,3170.8,0.18226519]
[1768326096141,0.65527237,3171.7,3170.7,0.001]
[1768326096341,0.65527237,3171.7,3170.7,3.15486703]
[1768326096510,3.15286184,3171.8,3170.8,4.94396038]
[1768326097150,3.15228698,3172.3,3170.9,1.79019869]
[1768326097352,0.248,3172.2,3170.9,1.79019869]
[1768326097865,0.248,3172.2,3171.0,2.03819869]
[1768326098858,6.30346028,3172.9,3171.2,1.79019869]
[1768326099053,1.29288587,3172.8,3171.4,1.79019869]
[1768326099371,0.75476886,3172.8,3171.6,1.79019869]
[1768326100173,0.79416623,3172.8,3171.6,2.03819869]
[1768326100360,0.75476886,3172.8,3171.6,2.03819869]
[1768326101085,6.3037791,3172.7,3171.6,2.03819869]
[1768326101245,0.7058548,3172.6,3171.6,2.03819869]
[1768326101753,0.7058548,3172.6,3171.6,1.79019869]
[1768326101955,0.7058548,3172.6,3171.6,2.03819869]
[1768326102158,0.7058548,3172.6,3171.6,5.19118108]
[1768326102331,3.15188955,3172.7,3171.7,1.79019869]
[1768326102968,3.15149223,3173.1,3171.7,1.79019869]
[1768326103274,3.15149223,3173.1,3171.9,1.79019869]
[1768326104986,6.30307796,3173.1,3171.9,1.79019869]
[1768326105153,6.30307796,3173.1,3172.1,1.79019869]
[1768326105353,6.30307796,3173.1,3172.2,0.248]
[1768326107177,0.002,3172.8,3172.2,2.03819869]
[1768326107486,0.002,3172.8,3172.3,1.79019869]
[1768326107794,0.002,3173.6,3172.3,1.79019869]
[1768326107954,0.002,3173.6,3172.5,1.79019869]
[1768326108579,0.002,3173.6,3172.7,1.79019869]
[1768326109153,0.002,3173.6,3172.9,3.15169088]
[1768326111187,0.002,3173.6,3172.9,4.94188957]
[1768326111520,0.002,3173.6,3173.1,1.79019869]